Cogmind - Beta 14 @@@ ROGUE MODE // 2025.01.12 @ 20:44:10 Player: aloola Result: Self-destructed Performance ------------- Evolutions (2) 1000 Regions Visited (3) 600 Robots Destroyed (28) 140 Value Destroyed (587) 587 Prototype IDs (2) 40 Alien Tech Used (0) 0 Bonus (0) 0 TOTAL SCORE: 2367 Bonus ------- None Cogmind --------- Core Integrity 482/550 Matter 300/300 Energy 160/160 System Corruption 0% Temperature Cool (0) Movement Walking (110) Location -8/Materials Parts ------- > --- POWER (1) -------- Light Nuclear Core > --- PROPULSION (4) --- Improved Aluminum Leg Carbon-fiber Leg VSS Leg > --- UTILITY (4) ------ Medium Storage Unit > --- WEAPON (2) ------- High-powered Shotgun High-powered Shotgun > --- INVENTORY (10) --- Light Deuterium Engine Light Deuterium Engine Small Storage Unit Light Armor Plating Beam Cannon Light Assault Rifle High-powered Shotgun Assault Cannon Grenade Launcher Datajack Peak State ------------ > --- POWER ------------ Light Deuterium Engine > --- PROPULSION ------- Aluminum Leg VSS Leg > --- UTILITY ---------- Medium Storage Unit Improved Sensor Array Scrap Shield > --- WEAPON ----------- High-powered Shotgun High-powered Shotgun > --- INVENTORY -------- Light Ion Engine Light Ion Engine Small Storage Unit Light Armor Plating Beam Cannon Light Assault Rifle High-powered Shotgun Assault Cannon Grenade Launcher Datajack [Rating: 22] Favorites ----------- Power Light Ion Engine Engine Light Ion Engine Power Core Light Nuclear Core Propulsion Aluminum Leg Leg Aluminum Leg Wheel Compact Wheel Flight Unit Flight Unit Utility Seismic Detector Device Seismic Detector Storage Small Storage Unit Protection Scrap Shield Weapon Light Assault Rifle Energy Cannon Beam Cannon Ballistic Gun Light Assault Rifle Launcher Grenade Launcher Build | -11 -10 -10 -8 ------- Run | Yrd Mat Sub Mat Slots Evolved 4 | . . . 4 Power . | . . . . Propulsion 2 | . . . 2 Utility 2 | . . . 2 Weapon . | . . . . Parts Attached 29 | 7 9 1 12 Power 7 | 1 3 . 3 Engine 6 | 1 3 . 2 Core 1 | . . . 1 Reactor . | . . . . Propulsion 11 | 2 5 . 4 Treads . | . . . . Leg 7 | . 3 . 4 Wheel 2 | 2 . . . Hover . | . . . . Flight 2 | . 2 . . Utility 5 | 2 . . 3 Device 2 | 1 . . 1 Storage 2 | 1 . . 1 Processor . | . . . . Hackware . | . . . . Protection 1 | . . . 1 Artifact . | . . . . Weapon 6 | 2 1 1 2 Energy Gun . | . . . . Energy Cannon 1 | . 1 . . Ballistic Gun 4 | 2 . . 2 Ballistic Cannon . | . . . . Launcher 1 | . . 1 . Special Weapon . | . . . . Impact Weapon . | . . . . Slashing Weapon . | . . . . Piercing Weapon . | . . . . Special Melee Weapon . | . . . . Unidentified Prototypes . | . . . . Parts Lost 8 | . 1 . 7 Power 2 | . 1 . 1 Propulsion 3 | . . . 3 Utility 3 | . . . 3 Weapon . | . . . . Highest Loss Streak 4 | . 1 . 4 To Critical Strikes . | . . . . Average Slot Usage (%) 92 | . 99 100 69 Engine 12 | . 13 14 8 Leg 24 | . 25 28 20 Device 12 | . 14 14 7 Storage 12 | . 14 14 9 Protection 1 | . . . 5 Energy Cannon 2 | . 2 7 . Ballistic Gun 21 | . 25 14 16 Launcher 1 | . . 6 1 Peak Build Rating 22 | 7 7 7 22 Average Rating 9 | 5 6 7 18 On Entrance 5 | . 7 7 7 Naked Turns . | . . . . Heaviest Build 40 | 13 13 13 40 Greatest Support 50 | 32 32 20 50 Greatest Overweight (x) 4 | . 4 . 1 Average Overweight (x) . | . . . . Largest Inventory Capacity 10 | 8 8 8 10 Average Capacity 8 | 6 8 8 9 Most Carried 10 | 5 8 8 10 Average Carried 7 | 3 7 6 8 Final Capacity 10 | 8 8 8 10 Final Carried 10 | 5 8 6 10 Class Distribution -------------------- 100% | Mutant Dominant Class ---------------- Mutant | -10/Materials Mutant | -10/Subcaves Mutant | -8/Materials Resources | -11 -10 -10 -8 ----------- Run | Yrd Mat Sub Mat Matter Collected 828 | 251 166 . 411 Remotely . | . . . . Salvage Created 642 | 44 265 . 333 Parts 46 | 2 20 . 24 Haulers Intercepted . | . . . . Recyclers Shooed . | . . . . Parts Field Recycled . | . . . . Retrieved Matter . | . . . . Parts Self-Destructed . | . . . . Prevented . | . . . . Kills | -11 -10 -10 -8 ------- Run | Yrd Mat Sub Mat Combat Hostiles Destroyed 24 | . 10 . 14 Guns 22 | . 8 . 14 Cannons 2 | . 2 . . Classes Destroyed 7 | 1 2 . 4 Worker 1 | . . . 1 Tunneler 2 | 2 . . . Recycler 1 | . . . 1 Swarmer 14 | . 6 . 8 Grunt 8 | . 4 . 4 Duelist 1 | . . . 1 Hunter 1 | . . . 1 Best Kill Streak 5 | 1 3 . 5 Combat Bots Only 4 | . 3 . 4 Max Kills in Single Turn 2 | 1 1 . 2 Gunslinging . | . . . . Exploded . | . . . . Melee . | . . . . Uniques/NPCs Destroyed . | . . . . Combat | -11 -10 -10 -8 -------- Run | Yrd Mat Sub Mat Hostile Shots Fired 158 | . 47 . 111 Missed 32 | . 11 . 21 Damage Taken 1260 | . 343 . 917 Core 107 | . 39 . 68 Absorbed by Shields . | . . . . Core Remaining (%) 92 | 100 . 84 . Volleys Fired 73 | 6 27 7 33 Largest 2 | 2 2 2 2 Hottest 80 | 40 80 80 50 Shots Fired 141 | 12 54 9 66 Gun 130 | 12 50 2 66 Cannon 6 | . 4 2 . Launcher 5 | . . 5 . Special . | . . . . Kinetic 130 | 12 50 2 66 Thermal 6 | . 4 2 . Explosive 5 | . . 5 . Electromagnetic . | . . . . Robot Hit Streak 9 | 5 7 . 9 Robot Miss Streak 10 | 2 5 . 10 Penetration Max . | . . . . Secondary Targets 3 | . 1 . 2 Max Gunslinging Chain 1 | . 1 . 1 Shots Hit Robots 86 | 8 31 . 47 Core Hits 46 | 4 18 . 24 Critical Kills 2 | . . . 2 Critical Parts Destroyed . | . . . . Critical Strikes 2 | . . . 2 Destroy 2 | . . . 2 Melee Attacks . | . . . . Impact . | . . . . Slashing . | . . . . Piercing . | . . . . Sneak Attacks . | . . . . Combat Hostiles . | . . . . Follow-up Attacks . | . . . . Damage Inflicted 1359 | 78 329 . 952 Guns 1289 | 78 259 . 952 Cannons 70 | . 70 . . Explosions . | . . . . Melee . | . . . . Ramming . | . . . . Kinetic 1289 | 78 259 . 952 Thermal 70 | . 70 . . Explosive . | . . . . Electromagnetic . | . . . . Impact . | . . . . Slashing . | . . . . Piercing . | . . . . Highest Corruption . | . . . . Average Corruption . | . . . . Corruption Purged . | . . . . Corruption Blocked . | . . . . Overload Shots . | . . . . Overflow Damage . | . . . . Projectiles . | . . . . Explosions . | . . . . Melee . | . . . . Knockbacks . | . . . . Impact . | . . . . Kinetic . | . . . . Secondary . | . . . . Self-Inflicted Damage . | . . . . Shots . | . . . . Rammed . | . . . . Targets Rammed . | . . . . Kicked . | . . . . Crushed . | . . . . Highest Temperature 120 | . 120 . 18 Average Temperature 29 | . 34 . 10 Received Heat Transfer 300 | . 102 . 198 Siege Activations . | . . . . Robots Corrupted . | . . . . Combat Hostiles . | . . . . Parts Fried . | . . . . Impact Corruptions . | . . . . Robots Melted . | . . . . Combat Hostiles . | . . . . Parts Melted 1 | . 1 . . Heat Transferred 148 | . 148 . . Parts Sabotaged . | . . . . Parts Stolen . | . . . . Parts Stripped . | . . . . Power Chain Reactions . | . . . . Alert | -11 -10 -10 -8 ------- Run | Yrd Mat Sub Mat Peak Influence 177 | 10 156 . 177 Initial 6 | . 6 . . Average 59 | 4 55 . 80 Maximum Alert Level . | . . . . Low Security (%) 100 | 100 100 . 100 Level 1 . | . . . . Level 2 . | . . . . Level 3 . | . . . . Level 4 . | . . . . Level 5 . | . . . . High Security . | . . . . Max Security . | . . . . Squads Dispatched 5 | . 3 . 2 Investigation 1 | . 1 . . Extermination . | . . . . Reinforcement 4 | . 2 . 2 Assault . | . . . . Garrison . | . . . . Intercept . | . . . . Searches Triggered . | . . . . Construction Impeded 1 | . . . 1 Haulers Reinforced . | . . . . Active Scanning Responses . | . . . . Cargo Convoy Interrupts . | . . . . Stealth | -11 -10 -10 -8 --------- Run | Yrd Mat Sub Mat Distress Signals 2 | . 1 . 1 Communications Jammed . | . . . . Distress Signals . | . . . . Times Spotted 28 | . 12 . 16 Peak Tracking Total 4 | . 4 . 4 Tactical Retreats 1 | . 1 . . Traps | -11 -10 -10 -8 ------- Run | Yrd Mat Sub Mat Traps Triggered 1 | . 1 . . Indirectly . | . . . . Trap Hack Attempts . | . . . . Triggered . | . . . . Disarmed . | . . . . Reprogrammed . | . . . . Reused . | . . . . Traps Extracted . | . . . . Installed . | . . . . Triggered . | . . . . Machines | -11 -10 -10 -8 ---------- Run | Yrd Mat Sub Mat Machines Disabled . | . . . . Max in Single Turn . | . . . . Machines Repaired . | . . . . Machines Dismantled . | . . . . Machines Sabotaged . | . . . . Overloaded Fab Kills . | . . . . Hacking | -11 -10 -10 -8 --------- Run | Yrd Mat Sub Mat Machines Accessed 2 | . 1 . 1 Terminals 2 | . 1 . 1 Fabricators . | . . . . Repair Stations . | . . . . Recycling Units . | . . . . Scanalyzers . | . . . . Garrison Access . | . . . . Total Hacks 5 | . 3 . 2 Successful 2 | . 1 . 1 Failed 3 | . 2 . 1 Catastrophic . | . . . . Database Lockouts . | . . . . Manual 2 | . 2 . . Terminals 5 | . 3 . 2 Fabricators . | . . . . Repair Stations . | . . . . Recycling Units . | . . . . Scanalyzers . | . . . . Garrison Access . | . . . . Terminal Hacks 2 | . 1 . 1 Prototype ID Bank 1 | . . . 1 Alert Level 1 | . 1 . . Fabricator Hacks . | . . . . Repair Station Hacks . | . . . . Recycling Unit Hacks . | . . . . Scanalyzer . | . . . . Garrison Access Hacks . | . . . . Unauthorized Hacks . | . . . . Terminals . | . . . . Fabricators . | . . . . Repair Stations . | . . . . Recycling Units . | . . . . Scanalyzers . | . . . . Garrison Access . | . . . . Data Cores Recovered . | . . . . Used . | . . . . Hacking Detections 2 | . 1 . 1 Full Trace Events . | . . . . Feedback Events . | . . . . Feedback Blocked . | . . . . Robot Schematics Acquired . | . . . . Robots Built . | . . . . Authchips . | . . . . Time . | . . . . Total Robot Build Rating . | . . . . Part Schematics Acquired . | . . . . Parts Built . | . . . . Authchips . | . . . . Time . | . . . . Total Part Build Rating . | . . . . Parts Repaired . | . . . . Time . | . . . . Parts Recycled . | . . . . Recycled Matter . | . . . . Retrieved Matter . | . . . . Retrieved Components . | . . . . Parts Scanalyzed . | . . . . Part Schematics Acquired . | . . . . Parts Damaged . | . . . . Bothacking | -11 -10 -10 -8 ------------ Run | Yrd Mat Sub Mat Used RIF Installer . | . . . . Robots Hacked . | . . . . Non-combat . | . . . . Combat . | . . . . Robot Hacks Applied . | . . . . Relay Couplers Released . | . . . . Fabnet Peak Effective % . | . . . . Robots Rewired . | . . . . Allies Hacked . | . . . . Hacks Repelled . | . . . . Allies | -11 -10 -10 -8 -------- Run | Yrd Mat Sub Mat Total Allies . | . . . . Largest Group . | . . . . Highest-Rated Group . | . . . . Highest-Rated Ally . | . . . . Total Orders . | . . . . Ally Attacks . | . . . . Total Damage . | . . . . Kills . | . . . . Allies Corrupted . | . . . . Allies Melted . | . . . . Intel | -11 -10 -10 -8 ------- Run | Yrd Mat Sub Mat Robot Analysis Total . | . . . . Derelict Logs Recovered 1 | . . 1 . Drone Launches . | . . . . Drone Recoveries . | . . . . Exploration | -11 -10 -10 -8 ------------- Run | Yrd Mat Sub Mat Turns Passed 2195 | 125 1139 400 531 Spaces Moved 1111 | 97 485 293 236 Core 7 | 6 1 . . Treads . | . . . . Legs 928 | . 399 293 236 Wheels 132 | 91 41 . . Hover . | . . . . Flight 44 | . 44 . . Fastest Speed 50 | 50 100 120 105 Average Speed 125 | 96 118 120 159 Slowest Speed 280 | 100 280 120 185 Overloaded Moves . | . . . . Propulsion Burnouts . | . . . . Robots Hopped . | . . . . Cave-ins Triggered . | . . . . Exploration Rate (%) 15 | 4 37 10 10 Regions Visited 3 Branch Regions 1 Pre-discovered Areas . | . . . . Known Exits Taken . | . . . . Unknown Exits Taken 3 | 1 1 1 . Scrap Searched . | . . . . Spaces Dug . | . . . . Terrain Destroyed 33 | . . 33 . Melee . | . . . . Projectile . | . . . . AOE 33 | . . 33 . Terrain Rammed . | . . . . Walls Destroyed . | . . . . Machines Disabled . | . . . . Actions | -11 -10 -10 -8 --------- Run | Yrd Mat Sub Mat Total 1782 | 114 1009 334 325 Wait 528 | . 468 29 31 Move 1108 | 96 484 292 236 Hop . | . . . . Pick Up 23 | 5 10 1 7 Fast Attach 16 | 7 2 . 7 Attach 3 | . 1 . 2 Detach 3 | . 1 . 2 Swap 10 | . 6 1 3 Drop 18 | . 10 4 4 Fire 73 | 6 27 7 33 Melee . | . . . . Ram . | . . . . Kick . | . . . . Crush . | . . . . Escape Stasis . | . . . . Rewire . | . . . . Trap . | . . . . Miscellaneous . | . . . . Route ------- -11/Scrapyard -10/Materials -10/Subcaves -8/Materials History --------- Turn | Location | Event 2 | -11/Scrapyard | Met Revision 17 12 | -11/Scrapyard | Discovered new exit (range 15) 126 | -11/Scrapyard | Entered Materials 306 | -10/Materials | Build established: Mutant 1234 | -10/Materials | Discovered new exit (range 9) 1265 | -10/Materials | Entered Subcaves 1311 | -10/Subcaves | Learned 2 Materials zone layouts 1320 | -10/Subcaves | Discovered new exit (range 11) 1665 | -10/Subcaves | Entered Materials 1665 | -8/Materials | Evolved 4 slots: Propulsion x2, Utility x2 1771 | -8/Materials | Lost 3 parts (1p1n1u) 2196 | -8/Materials | Self-destructed Last Messages --------------- 02146_ U-05 Engineer destroyed. 02149_ H-55 Commando suffers critical hit (Destroy). 02149_ H-55 Commando destroyed. 02154_ Acquired Carbon-fiber Leg. 02161_ K-01 Serf collects debris. 02162_ Dropped Lgt. Deuterium Engine. 02167_ Aluminum Leg destroyed. 02171_ S-10 Pest destroyed. 02175_ K-01 Serf collects debris. 02180_ K-01 Serf destroyed. 02180_ S-10 Pest destroyed. 02181_ ALERT: Construction progress impeded, dispatching reinforcements to local area. 02186_ S-10 Pest destroyed. 02188_ U-05 Engineer builds a Door. 02190_ Acquired 46 matter. 02191_ Acquired 8 matter. 02193_ Acquired 60 matter. 02194_ Acquired 15 matter. Map ----- +----------------------------------------------------+ | ?????????????????????????????????????? | | ?????????????????????????????????????? | | ?????????????????????????????????????? | | ???????????#######???????????????????? | | ????????#### #???????????????????? | | ????????# # T #???????????????????? | | ????????# # #???????????????????? | | ????????+ + """ #???????????????????? | | ????????# # """ #???????????????????? | | ????????# # """ #???????????????????? | | ????????# # #???????????????????? | | ?######## #######???????????????????? | | ?# + + #???????????????????? | | ?# # # #???????????????????? | | ?#""" # # """ #??????#??##????????? | | ?#""" # # """ #??????/? ????????? | | ?#""" # # """ #### # ?????????? | | ?# # # + # ??????????? | | ?######## ########## + #???????? | | ???????## ##????????? #????????????? | | ???????# ######??? #????????????? | | ???????# #### #????????????? | | ???????# ^ ^^^ [ #????????????? | | ???????# ### ^^ #????????????? | | ????#####+##### #????????????? | | ????# *u=@# * #????????????? | | ????# ! u/* #????????????? | | ????# * [=#% #????????????? | | ????# """ =!**#[ #????????????? | | ????# """ !==#% """ #????????????? | | ????# """ !*=# """ #????????????? | | ????# # """ #????????????? | | ????# # #????????????? | | ????########### #????????????? | | ??????????????# !! #????????????? | | ?????????###### !! #????????????? | | ?????????# !! ??????? | | ?????????# = ??????? | | ?????????# ??????? | | ?????????######/####+#########???????? | | ??????????????? ???? ???????????????? | | ??????????????? ????? ??? #?# | | ??????????????? ?????????""" #?# | | ?????????????????????????""" #?# | | ?????????????????????????""" #?# | | ????????????????????????? #?# | | ????????????????????????? #?# | | ????????????????????????? #?# | | ?????????????????????????############# | | ?????????????????????????# # | +----------------------------------------------------+ Best States ------------- Heat Dissipation 31 Energy Generation 14 Energy Capacity 250 Matter Stores 300 Matter Capacity 300 Sight Range 16 Robot Scan Range 15 Terrain Scan Density 10 Armor Coverage 800 Evasion (%) 55 Item Schematics ----------------- None Robot Schematics ------------------ None Fabricated ------------ Nothing Alien Tech Used ----------------- None Achievements -------------- None Challenges ------------ None Game ------ Seed CloakVariableBeam Manual? 0 Play Time 00:29:38 Cumulative 15.9 hours Start 2025.01.12 @ 13:09:57 End 2025.01.12 @ 20:44:10 Sessions 1 Manual Loads 0 Difficulty Rogue Special Mode None Game No. 10 Rogue 10 Adventurer 0 Explorer 0 Win Type - Total 0 Types 0/0/0/0/0/0/0/0/0 Lore% 12 Gallery% 15 Achievement% 15 Wizard Run 0 Options --------- Layout 1 ASCII 0 Keyboard 1 Movement Numpad Keybinds 0 Fullscreen 1 Font 24/Smallcaps Map View 50x35 Zoom Use 0% Tactical HUD 1 Map Filters NONE Filters NONE Steam 1 RUN: 9ac9be23-ed80-4a83-b785-d13be0633d4a